fUSD/lending_fUSD_20250610
["ID","MTS","AMOUNT","RATE_DAILY","PERIOD"]
[365287443,1749580240385,-490.0,0.00017424,2]
[365287445,1749580240395,-490.0,0.00017424,2]
[365287447,1749580240404,-490.0,0.00017424,2]
[365287449,1749580240414,-490.0,0.00017424,2]
[365287451,1749580240423,-895.16,0.00017424,2]
[365287453,1749580240433,-490.0,0.00017424,2]
[365287455,1749580240442,-442.36081038,0.00017424,2]
[365287457,1749580240451,-1000.0,0.00017434,2]
[365287459,1749580240462,-500.0,0.00017506,2]
[365287461,1749580240471,-500.0,0.00017506,2]
[365287463,1749580240481,-500.0,0.00017506,2]
[365287465,1749580240491,-554.0,0.00017554,2]
[365287467,1749580240500,-201.0,0.00017583,3]
[365287469,1749580240510,-1114.51,0.00017589,2]
[365287471,1749580240519,-383.48751638,0.00017589,2]
[365287473,1749580240527,-702.94,0.00017589,2]
[365287475,1749580240537,-588.8,0.00017589,2]
[365287477,1749580240547,-2297.94,0.00017589,2]
[365287479,1749580240556,-490.0,0.00017589,2]
[365287481,1749580240565,-490.0,0.00017589,2]
[365287483,1749580240575,-897.68,0.00017589,2]
[365287485,1749580240584,-3517.38,0.00017589,2]
[365287487,1749580240593,-595.78392617,0.00017589,2]
[365287489,1749580240602,-646.76,0.00017589,2]
[365287491,1749580240612,-490.0,0.00017589,2]
[365287493,1749580240621,-490.0,0.00017589,2]
[365287495,1749580240630,-490.0,0.00017589,2]
[365287497,1749580240640,-490.0,0.00017589,2]
[365287499,1749580240650,-490.0,0.00017589,2]
[365287501,1749580240662,-490.0,0.00017589,2]
[365287503,1749580240671,-895.16,0.00017589,2]
[365287505,1749580240681,-490.0,0.00017589,2]
[365287507,1749580240690,-581.0,0.0001764,2]
[365287509,1749580240699,-1862.0,0.00017658,2]
[365287511,1749580240710,-449.0,0.00017672,2]
[365287513,1749580240720,-229.0,0.00017726,2]
[365287515,1749580240729,-1903.0,0.00017734,2]
[365287517,1749580240739,-1065.0,0.00017745,2]
[365287519,1749580240748,-1114.51,0.00017753,2]
[365287521,1749580240758,-702.94,0.00017753,2]
[365287523,1749580240767,-588.8,0.00017753,2]
[365287525,1749580240776,-2297.94,0.00017753,2]
[365287527,1749580240785,-490.0,0.00017753,2]
[365287529,1749580240795,-490.0,0.00017753,2]
[365287531,1749580240804,-897.68,0.00017753,2]
[365287533,1749580240813,-3517.38,0.00017753,2]
[365287535,1749580240823,-646.76,0.00017753,2]
[365287537,1749580240832,-355.20478898,0.00017753,2]
[365287539,1749580240841,-490.0,0.00017753,2]
[365287541,1749580240851,-490.0,0.00017753,2]
[365287543,1749580240860,-490.0,0.00017753,2]
[365287545,1749580240870,-490.0,0.00017753,2]
[365287547,1749580240879,-490.0,0.00017753,2]
[365287549,1749580240889,-895.16,0.00017753,2]
[365287551,1749580240898,-490.0,0.00017753,2]
[365287553,1749580240907,-773.0,0.00017758,2]
[365287555,1749580240917,-500.0,0.00017808,2]
[365287557,1749580240926,-190.47944605,0.00017808,2]
[365287559,1749580240935,-1214.0,0.00017812,2]
[365287561,1749580240945,-500.0,0.00017817,2]
[365287563,1749580240955,-1093.0,0.00017821,2]
[365287565,1749580240964,-1495.0,0.00017831,2]
[365287567,1749580240973,-1000.0,0.00017863,2]
[365287569,1749580240985,-151.0,0.00017863,2]
[365287571,1749580240996,-1957.856,0.00017863,2]
[365287573,1749580241005,-153.22322197,0.00017863,2]
[365287575,1749580241015,-255.30836092,0.00017863,2]
[365287577,1749580241023,-207.4,0.00017863,2]
[365287579,1749580241032,-158.68632718,0.000179,2]
[365287581,1749580241041,-158.68632718,0.000179,2]
[365287583,1749580241053,-461.47726254,0.000179,2]
[365287584,1749580241062,-1763.0,0.00017908,2]
[365287585,1749580241071,-158.68632718,0.00017908,2]
[365287586,1749580241080,-1114.51,0.00017917,2]
[365287587,1749580241089,-702.94,0.00017917,2]
[365287588,1749580241098,-588.8,0.00017917,2]
[365287589,1749580241107,-490.0,0.00017917,2]
[365287590,1749580241115,-490.0,0.00017917,2]
[365287591,1749580241125,-897.68,0.00017917,2]
[365287592,1749580241135,-3517.38,0.00017917,2]
[365287593,1749580241144,-646.76,0.00017917,2]
[365287594,1749580241154,-490.0,0.00017917,2]
[365287596,1749580241164,-490.0,0.00017917,2]
[365287598,1749580241173,-490.0,0.00017917,2]
[365287600,1749580241183,-490.0,0.00017917,2]
[365287602,1749580241192,-490.0,0.00017917,2]
[365287604,1749580241202,-895.16,0.00017917,2]
[365287606,1749580241212,-490.0,0.00017917,2]
[365287608,1749580241222,-377.0,0.00017918,2]
[365287610,1749580241231,-2030.296672,0.00017918,2]
[365287612,1749580241241,-461.47726252,0.00017969,2]
[365287614,1749580241250,-2105.41764886,0.00017973,2]
[365287616,1749580241260,-945.0,0.00017978,2]
[365287618,1749580241269,-151.0,0.00017995,2]
[365287620,1749580241278,-1366.36535,0.00018,2]
[365287622,1749580241287,-2183.31810187,0.00018028,2]
[365287624,1749580241296,-461.47726252,0.00018038,2]
[365287626,1749580241305,-600.0,0.00018039,4]
[365287628,1749580241313,-600.0,0.00018039,4]
[365287630,1749580241322,-1680.0,0.00018049,2]
[365287632,1749580241332,-201.0,0.00018071,3]
[365287634,1749580241341,-300.0,0.00018081,2]
[365287636,1749580241350,-250.0,0.00018081,2]
[365287638,1749580241359,-500.0,0.00018081,2]
[365287640,1749580241369,-1114.51,0.00018082,2]
[365287642,1749580241378,-702.94,0.00018082,2]
[365287644,1749580241387,-588.8,0.00018082,2]
[365287646,1749580241396,-490.0,0.00018082,2]
[365287648,1749580241406,-490.0,0.00018082,2]
[365287650,1749580241415,-897.68,0.00018082,2]
[365287652,1749580241425,-3517.38,0.00018082,2]
[365287654,1749580241434,-646.76,0.00018082,2]
[365287656,1749580241443,-490.0,0.00018082,2]
[365287658,1749580241454,-490.0,0.00018082,2]
[365287660,1749580241464,-490.0,0.00018082,2]
[365287662,1749580241473,-490.0,0.00018082,2]
[365287664,1749580241483,-490.0,0.00018082,2]
[365287666,1749580241492,-895.16,0.00018082,2]
[365287668,1749580241501,-490.0,0.00018082,2]
[365287670,1749580241511,-174.75544026,0.00018083,2]
[365287672,1749580241522,-461.47726252,0.00018107,2]
[365287674,1749580241532,-461.47726252,0.00018176,2]
[365287676,1749580241542,-461.47726252,0.00018245,2]
[365287678,1749580241562,-500.0,0.00018245,2]
[365287680,1749580241571,-1114.51,0.00018246,2]
[365287682,1749580241588,-702.94,0.00018246,2]
[365287683,1749580241597,-588.8,0.00018246,2]
[365287685,1749580241607,-490.0,0.00018246,2]
[365287687,1749580241616,-490.0,0.00018246,2]
[365287689,1749580241626,-897.68,0.00018246,2]
[365287691,1749580241635,-3517.38,0.00018246,2]
[365287693,1749580241646,-646.76,0.00018246,2]
[365287695,1749580241656,-490.0,0.00018246,2]
[365287697,1749580241665,-490.0,0.00018246,2]
[365287699,1749580241675,-490.0,0.00018246,2]
[365287701,1749580241684,-490.0,0.00018246,2]
[365287703,1749580241694,-490.0,0.00018246,2]
[365287705,1749580241705,-895.16,0.00018246,2]
[365287707,1749580241714,-490.0,0.00018246,2]
[365287709,1749580241725,-158.68632718,0.00018282,2]
[365287711,1749580241734,-461.47726252,0.00018314,2]
[365287713,1749580241744,-500.0,0.00018356,2]
[365287715,1749580241753,-802.0,0.00018361,2]
[365287717,1749580241763,-637.0,0.00018361,2]
[365287719,1749580241772,-2001.0,0.00018361,2]
[365287721,1749580241782,-1275.0,0.00018361,2]
[365287723,1749580241791,-927.0,0.00018361,2]
[365287725,1749580241800,-590.0,0.00018361,2]
[365287727,1749580241809,-558.0,0.00018361,2]
[365287729,1749580241818,-1256.0,0.00018361,2]
[365287731,1749580241828,-1159.0,0.00018361,2]
[365287733,1749580241838,-4085.0,0.00018361,2]
[365287736,1749580241849,-155.0,0.00018361,2]
[365287738,1749580241858,-3330.0,0.00018361,2]
[365287740,1749580241868,-461.47726252,0.00018383,2]
[365287742,1749580241877,-1114.51,0.0001841,2]
[365287744,1749580241887,-702.94,0.0001841,2]
[365287746,1749580241896,-588.8,0.0001841,2]
[365287748,1749580241905,-490.0,0.0001841,2]
[365287750,1749580241915,-490.0,0.0001841,2]
[365287752,1749580241924,-897.68,0.0001841,2]
[365287754,1749580241933,-3517.38,0.0001841,2]
[365287756,1749580241943,-646.76,0.0001841,2]
[365287758,1749580241952,-490.0,0.0001841,2]
[365287760,1749580241962,-490.0,0.0001841,2]
[365287762,1749580241971,-488.62109585,0.0001841,2]
[365287764,1749580241981,-490.0,0.0001841,2]
[365287766,1749580241990,-314.69333808,0.0001841,2]
[365287767,1749580242000,-895.16,0.0001841,2]
[365287768,1749580242010,-490.0,0.0001841,2]
[365287769,1749580242019,-461.47726252,0.00018452,2]
[365287770,1749580242029,-1037.00642053,0.00018452,2]
[365287771,1749580242039,-504.41185349,0.00018475,2]
[365287772,1749580242049,-461.47726252,0.00018521,2]
[365287773,1749580242059,-201.0,0.00018558,4]
[365287775,1749580242069,-1114.51,0.00018575,2]
[365287776,1749580242079,-702.94,0.00018575,2]
[365287778,1749580242088,-588.8,0.00018575,2]
[365287780,1749580242098,-490.0,0.00018575,2]
[365287781,1749580242108,-490.0,0.00018575,2]
[365287782,1749580242119,-897.68,0.00018575,2]
[365287783,1749580242128,-3517.38,0.00018575,2]
[365287784,1749580242138,-646.76,0.00018575,2]
[365287785,1749580242148,-490.0,0.00018575,2]
[365287786,1749580242158,-490.0,0.00018575,2]
[365287787,1749580242168,-490.0,0.00018575,2]
[365287788,1749580242178,-895.16,0.00018575,2]
[365287790,1749580242188,-490.0,0.00018575,2]
[365287792,1749580242198,-461.47726252,0.0001859,2]
[365287794,1749580242209,-1406.81,0.000186,2]
[365287795,1749580242220,-504.41185345,0.00018633,2]
[365287796,1749580242230,-158.68632718,0.00018657,2]
[365287797,1749580242239,-461.47726252,0.00018659,2]
[365287798,1749580242249,-1406.81,0.000187,2]
[365287799,1749580242259,-461.47726252,0.00018728,2]
[365287800,1749580242269,-1114.51,0.00018739,2]
[365287801,1749580242279,-702.94,0.00018739,2]
[365287802,1749580242289,-588.8,0.00018739,2]
[365287803,1749580242298,-490.0,0.00018739,2]
[365287804,1749580242308,-490.0,0.00018739,2]
[365287805,1749580242318,-897.68,0.00018739,2]
[365287806,1749580242327,-3517.38,0.00018739,2]
[365287807,1749580242337,-646.76,0.00018739,2]
[365287808,1749580242347,-490.0,0.00018739,2]
[365287809,1749580242357,-490.0,0.00018739,2]
[365287810,1749580242367,-895.16,0.00018739,2]
[365287811,1749580242376,-490.0,0.00018739,2]
[365287812,1749580242385,-504.41185345,0.00018792,2]
[365287813,1749580242395,-1333.744885,0.00018794,2]
[365287814,1749580242404,-461.47726252,0.00018797,2]
[365287815,1749580242414,-980.94485654,0.00018857,2]
[365287816,1749580242424,-461.47726252,0.00018866,2]
[365287817,1749580242434,-1406.81,0.000189,2]
[365287818,1749580242443,-300.0,0.000189,6]
[365287819,1749580242452,-1114.51,0.00018904,2]
[365287820,1749580242463,-702.94,0.00018904,2]
[365287821,1749580242473,-588.8,0.00018904,2]
[365287822,1749580242482,-490.0,0.00018904,2]
[365287823,1749580242492,-490.0,0.00018904,2]
[365287824,1749580242503,-897.68,0.00018904,2]
[365287825,1749580242513,-3517.38,0.00018904,2]
[365287826,1749580242523,-646.76,0.00018904,2]
[365287827,1749580242532,-490.0,0.00018904,2]
[365287828,1749580242542,-490.0,0.00018904,2]
[365287830,1749580242552,-895.16,0.00018904,2]
[365287831,1749580242562,-490.0,0.00018904,2]
[365287833,1749580242571,-500.0,0.00018904,2]
[365287834,1749580242581,-150.0,0.00018925,2]
[365287835,1749580242590,-461.47726252,0.00018934,2]
[365287836,1749580242600,-504.41185345,0.0001895,2]
[365287837,1749580242609,-1406.81,0.00019,2]
[365287838,1749580242619,-1406.81,0.00019,2]
[365287839,1749580242629,-18584.55169995,0.00019,2]
[365287840,1749580242639,-250.0,0.00019,2]
[365287841,1749580242648,-1947.457,0.00019,2]
[365287842,1749580242661,-600.0,0.00019,6]
[365287843,1749580242670,-461.47726252,0.00019003,2]
[365287844,1749580242680,-500.0,0.00019024,2]
[365287845,1749580242691,-500.0,0.00019024,2]
[365287846,1749580242701,-158.68632718,0.00019031,2]
[365287847,1749580242712,-201.0,0.00019046,5]
[365287848,1749580242723,-197.57777096,0.00019051,2]
[365287849,1749580242735,-1114.51,0.00019068,2]
[365287850,1749580242744,-702.94,0.00019068,2]
[365287852,1749580242755,-588.8,0.00019068,2]
[365287854,1749580242765,-490.0,0.00019068,2]
[365287855,1749580242775,-490.0,0.00019068,2]
[365287856,1749580242785,-897.68,0.00019068,2]
[365287857,1749580242795,-3517.38,0.00019068,2]
[365287858,1749580242805,-646.76,0.00019068,2]
[365287860,1749580242815,-490.0,0.00019068,2]
[365287861,1749580242825,-490.0,0.00019068,2]
[365287862,1749580242835,-895.16,0.00019068,2]
[365287863,1749580242845,-490.0,0.00019068,2]
[365287864,1749580242854,-461.47726252,0.00019072,2]
[365287865,1749580242863,-900.0,0.000191,6]
[365287866,1749580242873,-504.41185345,0.00019108,2]
[365287867,1749580242882,-461.47726252,0.00019141,2]
[365287868,1749580242892,-500.0,0.00019177,2]
[365287869,1749580242901,-500.0,0.00019177,2]
[365287870,1749580242911,-151.0,0.00019178,2]
[365287871,1749580242920,-151.0,0.00019178,2]
[365287872,1749580242930,-151.0,0.00019178,2]
[365287873,1749580242939,-151.0,0.00019178,2]
[365287874,1749580242948,-151.0,0.00019178,2]
[365287875,1749580242958,-151.0,0.00019178,2]
[365287876,1749580242967,-228.588123,0.00019178,2]
[365287877,1749580242977,-151.0,0.00019178,2]
[365287878,1749580242987,-197.567333,0.00019178,2]
[365287879,1749580242996,-151.0,0.00019178,2]
[365287880,1749580243136,-151.0,0.00019178,2]
[365287882,1749580243172,-151.0,0.00019178,2]
[365287884,1749580243182,-151.0,0.00019178,2]
[365287885,1749580243191,-151.0,0.00019178,2]
[365287887,1749580243200,-151.0,0.00019178,2]
[365287889,1749580243211,-151.0,0.00019178,2]
[365287891,1749580243221,-151.0,0.00019178,2]
[365287892,1749580243230,-151.0,0.00019178,2]
[365287894,1749580243239,-151.0,0.00019178,2]
[365287896,1749580243249,-151.0,0.00019178,2]
[365287898,1749580243258,-1501.15146608,0.00019178,2]
[365287899,1749580243267,-563.97928574,0.00019178,2]
[365287901,1749580243276,-1501.15146608,0.00019178,2]
[365287903,1749580243285,-1501.15146608,0.00019178,2]
[365287905,1749580243294,-1501.15146608,0.00019178,2]
[365287907,1749580243303,-1501.15146608,0.00019178,2]
[365287909,1749580243313,-1501.15146608,0.00019178,2]
[365287912,1749580243322,-1501.15146608,0.00019178,2]
[365287914,1749580243332,-1501.15146608,0.00019178,2]
[365287916,1749580243341,-1501.15146608,0.00019178,2]
[365287918,1749580243351,-1501.15146608,0.00019178,2]
[365287919,1749580243360,-1501.15146608,0.00019178,2]
[365287921,1749580243370,-1501.15146608,0.00019178,2]
[365287923,1749580243379,-1501.15146608,0.00019178,2]
[365287924,1749580243389,-1501.15146608,0.00019178,2]
[365287926,1749580243398,-1501.15146608,0.00019178,2]
[365287927,1749580243407,-1501.15146608,0.00019178,2]
[365287928,1749580243416,-1501.15146608,0.00019178,2]
[365287929,1749580243426,-1501.15146608,0.00019178,2]
[365287930,1749580243435,-1501.15146608,0.00019178,2]
[365287931,1749580243445,-1501.15146608,0.00019178,2]
[365287932,1749580243455,-1501.15146608,0.00019178,2]
[365287933,1749580243464,-1501.15146608,0.00019178,2]
[365287934,1749580243473,-1501.15146608,0.00019178,2]
[365287935,1749580243483,-1501.15146608,0.00019178,2]
[365287936,1749580243492,-1501.15146608,0.00019178,2]
[365287937,1749580243501,-1501.15146608,0.00019178,2]
[365287938,1749580243511,-1501.15146608,0.00019178,2]
[365287939,1749580243528,-1501.15146608,0.00019178,2]
[365287940,1749580243537,-1501.15146608,0.00019178,2]
[365287941,1749580243547,-1501.15146608,0.00019178,2]
[365287942,1749580243557,-1501.15146608,0.00019178,2]
[365287943,1749580243567,-1501.15146608,0.00019178,2]
[365287944,1749580243578,-1501.15146608,0.00019178,2]
[365287945,1749580243588,-1501.15146608,0.00019178,2]
[365287946,1749580243597,-1501.15146608,0.00019178,2]
[365287947,1749580243607,-1501.15146608,0.00019178,2]
[365287948,1749580243616,-1501.15146608,0.00019178,2]
[365287949,1749580243626,-1501.15146608,0.00019178,2]
[365287950,1749580243635,-1501.15146608,0.00019178,2]
[365287951,1749580243648,-1501.15146608,0.00019178,2]
[365287952,1749580243657,-1501.15146608,0.00019178,2]
[365287953,1749580243667,-1501.15146608,0.00019178,2]
[365287954,1749580243676,-1501.15146608,0.00019178,2]
[365287955,1749580243687,-1501.15146608,0.00019178,2]
[365287956,1749580243696,-1501.15146608,0.00019178,2]
[365287957,1749580243705,-1501.15146608,0.00019178,2]
[365287958,1749580243715,-1501.15146608,0.00019178,2]
[365287959,1749580243724,-1501.15146608,0.00019178,2]
[365287960,1749580243735,-1501.15146608,0.00019178,2]
[365287961,1749580243745,-1501.15146608,0.00019178,2]
[365287962,1749580243754,-1501.15146608,0.00019178,2]
[365287963,1749580243764,-1501.15146608,0.00019178,2]
[365287964,1749580243773,-1501.15146608,0.00019178,2]
[365287965,1749580243783,-1501.15146608,0.00019178,2]
[365287966,1749580243792,-1501.15146608,0.00019178,2]
[365287967,1749580243801,-1501.15146608,0.00019178,2]
[365287968,1749580243810,-1501.15146608,0.00019178,2]
[365287969,1749580243820,-1501.15146608,0.00019178,2]
[365287970,1749580243829,-1501.15146608,0.00019178,2]
[365287971,1749580243839,-1501.15146608,0.00019178,2]
[365287972,1749580243848,-1501.15146608,0.00019178,2]
[365287973,1749580243857,-1501.15146608,0.00019178,2]
[365287974,1749580243866,-1501.15146608,0.00019178,2]
[365287975,1749580243875,-1501.15146608,0.00019178,2]
[365287976,1749580243885,-1501.15146608,0.00019178,2]
[365287977,1749580243894,-1501.15146608,0.00019178,2]
[365287978,1749580243903,-1501.15146608,0.00019178,2]
[365287979,1749580243913,-1501.15146608,0.00019178,2]
[365287980,1749580243922,-2196.94559666,0.00019178,2]
[365287981,1749580243932,-2196.94559666,0.00019178,2]
[365287982,1749580243942,-2196.94559666,0.00019178,2]
[365287983,1749580243956,-2196.94559666,0.00019178,2]
[365287984,1749580243972,-2196.94559666,0.00019178,2]
[365287985,1749580243987,-2196.94559666,0.00019178,2]
[365287986,1749580243997,-2196.94559666,0.00019178,2]
[365287987,1749580244010,-2196.94559666,0.00019178,2]
[365287988,1749580244020,-2196.94559666,0.00019178,2]
[365287989,1749580244029,-2196.94559666,0.00019178,2]
[365287990,1749580244047,-2196.94559666,0.00019178,2]
[365287991,1749580244056,-2196.94559666,0.00019178,2]
[365287992,1749580244066,-2196.94559666,0.00019178,2]
[365287993,1749580244075,-2196.94559666,0.00019178,2]
[365287994,1749580244084,-2196.94559666,0.00019178,2]
[365287995,1749580244094,-2196.94559666,0.00019178,2]
[365287996,1749580244103,-2196.94559666,0.00019178,2]
[365287997,1749580244112,-2196.94559666,0.00019178,2]
[365287998,1749580244122,-2196.94559666,0.00019178,2]
[365287999,1749580244131,-2196.94559666,0.00019178,2]
[365288000,1749580244141,-2196.94559666,0.00019178,2]
[365288001,1749580244150,-2196.94559666,0.00019178,2]
[365288002,1749580244160,-2196.94559659,0.00019178,2]
[365288003,1749580244170,-482.34307467,0.00019178,2]
[365288004,1749580244179,-151.0,0.00019178,2]
[365288005,1749580244189,-1000.0,0.00019178,2]
[365288006,1749580244198,-1000.0,0.00019178,2]
[365288007,1749580244209,-1000.0,0.00019178,2]
[365288008,1749580244218,-1000.0,0.00019178,2]
[365288009,1749580244227,-1000.0,0.00019178,2]
[365288010,1749580244236,-1000.0,0.00019178,2]
[365288011,1749580244246,-1000.0,0.00019178,2]
[365288012,1749580244255,-1000.0,0.00019178,2]
[365288013,1749580244265,-1000.0,0.00019178,2]
[365288014,1749580244274,-1000.0,0.00019178,2]
[365288015,1749580244284,-1000.0,0.00019178,2]
[365288016,1749580244293,-1000.0,0.00019178,2]
[365288017,1749580244303,-1000.0,0.00019178,2]
[365288018,1749580244313,-1000.0,0.00019178,2]
[365288019,1749580244323,-1000.0,0.00019178,2]
[365288020,1749580244332,-1000.0,0.00019178,2]
[365288021,1749580244342,-1000.0,0.00019178,2]
[365288022,1749580244351,-1000.0,0.00019178,2]
[365288023,1749580244361,-1000.0,0.00019178,2]
[365288024,1749580244370,-1000.0,0.00019178,2]
[365288025,1749580244379,-1000.0,0.00019178,2]
[365288026,1749580244388,-1000.0,0.00019178,2]
[365288027,1749580244398,-1000.0,0.00019178,2]
[365288028,1749580244407,-1000.0,0.00019178,2]
[365288029,1749580244416,-1000.0,0.00019178,2]
[365288030,1749580244426,-1000.0,0.00019178,2]
[365288031,1749580244435,-1000.0,0.00019178,2]
[365288032,1749580244445,-1000.0,0.00019178,2]
[365288033,1749580244455,-1000.0,0.00019178,2]
[365288034,1749580244464,-1000.0,0.00019178,2]
[365288035,1749580244473,-1000.0,0.00019178,2]
[365288036,1749580244482,-1000.0,0.00019178,2]
[365288037,1749580244492,-1000.0,0.00019178,2]
[365288038,1749580244501,-1000.0,0.00019178,2]
[365288039,1749580244511,-1000.0,0.00019178,2]
[365288040,1749580244520,-1000.0,0.00019178,2]
[365288041,1749580244530,-1000.0,0.00019178,2]
[365288042,1749580244540,-1000.0,0.00019178,2]
[365288043,1749580244549,-1000.0,0.00019178,2]
[365288044,1749580244559,-1000.0,0.00019178,2]
[365288045,1749580244568,-869.0,0.00019178,2]
[365288046,1749580244578,-270.08,0.00019178,2]
[365288047,1749580244588,-500.69,0.000192,7]
[365288048,1749580244598,-1200.0,0.000192,7]
[365288049,1749580244609,-156.08806021,0.00019205,2]
[365288050,1749580244619,-461.47726252,0.0001921,2]
[365288051,1749580244628,-1114.51,0.00019232,2]
[365288052,1749580244639,-702.94,0.00019232,2]
[365288053,1749580244648,-588.8,0.00019232,2]
[365288054,1749580244660,-490.0,0.00019232,2]
[365288055,1749580244670,-490.0,0.00019232,2]
[365288056,1749580244680,-897.68,0.00019232,2]
[365288057,1749580244689,-3517.38,0.00019232,2]
[365288058,1749580244700,-646.76,0.00019232,2]
[365288059,1749580244711,-490.0,0.00019232,2]
[365288060,1749580244720,-490.0,0.00019232,2]
[365288061,1749580244731,-895.16,0.00019232,2]
[365288062,1749580244741,-490.0,0.00019232,2]
[365288063,1749580244751,-156.587,0.00019232,2]
[365288064,1749580244761,-215.0738,0.00019232,2]
[365288065,1749580244771,-1399.51077988,0.00019233,2]
[365288066,1749580244780,-548.88,0.00019242,2]
[365288067,1749580244790,-233.89,0.00019251,2]
[365288068,1749580244800,-504.41185345,0.00019267,2]
[365288069,1749580244809,-2474.23757724,0.00019279,2]
[365288070,1749580244819,-461.47726252,0.00019279,2]
[365288071,1749580244828,-1500.0,0.000193,7]
[365288072,1749580244838,-156.08806021,0.00019315,2]
[365288073,1749580244847,-30018.08116402,0.00019342,2]
[365288074,1749580244856,-461.47726252,0.00019348,2]
[365288075,1749580244866,-594.0,0.00019389,2]
[365288076,1749580244875,-500.0,0.0001939,7]
[365288077,1749580244885,-1114.51,0.00019397,2]
[365288078,1749580244895,-702.94,0.00019397,2]
[365288079,1749580244904,-588.8,0.00019397,2]
[365288080,1749580244914,-490.0,0.00019397,2]
[365288081,1749580244924,-490.0,0.00019397,2]
[365288082,1749580244934,-897.68,0.00019397,2]
[365288083,1749580244943,-3517.38,0.00019397,2]
[365288084,1749580244953,-646.76,0.00019397,2]
[365288085,1749580244963,-490.0,0.00019397,2]
[365288086,1749580244973,-490.0,0.00019397,2]
[365288087,1749580244982,-895.16,0.00019397,2]
[365288088,1749580244992,-490.0,0.00019397,2]
[365288089,1749580245002,-300.0,0.000194,7]
[365288090,1749580245013,-158.68632718,0.00019405,2]
[365288091,1749580245022,-461.47726252,0.00019417,2]
[365288092,1749580245031,-156.08806021,0.00019425,2]
[365288093,1749580245040,-504.41185345,0.00019425,2]
[365288094,1749580245050,-500.0,0.0001943,7]
[365288095,1749580245059,-150.0,0.00019473,2]
[365288096,1749580245069,-150.0,0.00019473,2]
[365288097,1749580245078,-150.0,0.00019473,2]
[365288098,1749580245087,-150.0,0.00019473,2]
[365288099,1749580245097,-439.36,0.00019473,2]
[365288100,1749580245106,-150.0,0.00019473,2]
[365288101,1749580245115,-150.0,0.00019473,2]
[365288102,1749580245124,-461.47726252,0.00019486,2]
[365288103,1749580245134,-860.35,0.0001949,7]
[365288104,1749580245143,-152.0,0.0001949,6]
[365288105,1749580245152,-500.0,0.00019499,2]
[365288106,1749580245162,-2120.31112738,0.000195,2]
[365288107,1749580245172,-23638.05324647,0.000195,2]
[365288108,1749580245182,-300.0,0.000195,7]
[365288109,1749580245191,-276.88206124,0.000195,2]
[365288110,1749580245201,-5789.23385536,0.000195,2]
[365288111,1749580245211,-1399.51077988,0.00019506,2]
[365288112,1749580245220,-200.0,0.0001951,2]
[365288113,1749580245230,-500.0,0.0001951,2]
[365288114,1749580245239,-9565.94086467,0.00019511,2]
[365288115,1749580245249,-201.0,0.00019533,5]
[365288116,1749580245260,-156.08806021,0.00019534,2]
[365288117,1749580245269,-12939.20918976,0.00019548,3]
[365288118,1749580245279,-461.47726252,0.00019555,2]
[365288119,1749580245288,-1114.51,0.00019561,2]
[365288120,1749580245298,-702.94,0.00019561,2]
[365288121,1749580245307,-588.8,0.00019561,2]
[365288122,1749580245316,-151.0,0.00019561,2]
[365288123,1749580245326,-490.0,0.00019561,2]
[365288124,1749580245335,-151.0,0.00019561,2]
[365288125,1749580245344,-151.0,0.00019561,2]
[365288126,1749580245353,-151.0,0.00019561,2]
[365288127,1749580245362,-151.0,0.00019561,2]
[365288128,1749580245371,-424.11673295,0.00019561,2]
[365288129,1749580245380,-151.0,0.00019561,2]
[365288130,1749580245389,-897.68,0.00019561,2]